Cogmind - Beta 13 @@@ ROGUE MODE // 2024.04.10 @ 17:26:16 Player: Bace Troncons Result: Destroyed by as-89781 with Assembled Heavy Rifle Performance ------------- Evolutions (0) 0 Regions Visited (2) 400 Robots Destroyed (8) 40 Value Destroyed (165) 165 Prototype IDs (1) 20 Alien Tech Used (0) 0 Bonus (0) 0 TOTAL SCORE: 625 Bonus ------- None Cogmind --------- Core Integrity 0/250 Matter 295/300 Energy 100/100 System Corruption 7% Temperature Cool (0) Movement Rolling (100) Location -10/Mines Parts ------- > --- POWER (1) -------- (None) > --- PROPULSION (2) --- Compact Wheel > --- UTILITY (2) ------ Signal Interpreter > --- WEAPON (2) ------- Hammer > --- INVENTORY (5) ---- ECM Suite Core Shielding Light Assault Rifle Light Assault Rifle Peak State ------------ > --- POWER ------------ Light Ion Engine > --- PROPULSION ------- (None) > --- UTILITY ---------- Experimental Sensor Array Signal Interpreter > --- WEAPON ----------- Welding Torch Hammer > --- INVENTORY -------- Aluminum Leg ECM Suite Core Shielding Light Assault Rifle [Rating: 13] Favorites ----------- Power Ion Engine Engine Ion Engine Propulsion Aluminum Leg Leg Aluminum Leg Wheel Compact Wheel Utility Signal Interpreter Device ECM Suite Processor Signal Interpreter Weapon EM Pulse Gun Energy Gun EM Pulse Gun Special Weapon Welding Torch Impact Weapon Hammer Build | -11 -10 -10 ------- Run | Yrd Mat Min Slots Evolved . | . . . Power . | . . . Propulsion . | . . . Utility . | . . . Weapon . | . . . Parts Attached 12 | 4 3 5 Power 2 | 1 . 1 Engine 2 | 1 . 1 Core . | . . . Reactor . | . . . Propulsion 4 | 2 1 1 Treads . | . . . Leg 3 | 2 1 . Wheel 1 | . . 1 Hover . | . . . Flight . | . . . Utility 3 | . 2 1 Device 2 | . 1 1 Storage . | . . . Processor 1 | . 1 . Hackware . | . . . Protection . | . . . Artifact . | . . . Weapon 3 | 1 . 2 Energy Gun 1 | 1 . . Energy Cannon . | . . . Ballistic Gun . | . . . Ballistic Cannon . | . . . Launcher . | . . . Special Weapon 1 | . . 1 Impact Weapon 1 | . . 1 Slashing Weapon . | . . . Piercing Weapon . | . . . Special Melee Weapon . | . . . Unidentified Prototypes 1 | . . 1 Parts Lost 7 | . . 7 Power 2 | . . 2 Propulsion 2 | . . 2 Utility 1 | . . 1 Weapon 2 | . . 2 Highest Loss Streak 2 | . . 2 To Critical Strikes 1 | . . 1 Average Slot Usage (%) 64 | . 68 58 Engine 10 | . 14 6 Leg 18 | . 27 6 Device 10 | . 9 10 Processor 7 | . 2 14 Energy Gun 8 | . 14 . Special Weapon 1 | . . 4 Impact Weapon 6 | . . 14 Naked Turns . | . . . Heaviest Build 11 | 7 9 11 Greatest Support 20 | 20 20 20 Greatest Overweight (x) 2 | . . 2 Average Overweight (x) . | . . . Largest Inventory Capacity 5 | 5 5 5 Average Capacity 5 | 5 5 5 Most Carried 5 | 3 4 5 Average Carried 2 | . 1 3 Final Capacity 5 | 5 5 5 Final Carried 4 | . 3 4 Class Distribution -------------------- 100% | Mutant Dominant Class ---------------- Mutant | -10/Materials Mutant | -10/Mines Resources | -11 -10 -10 ----------- Run | Yrd Mat Min Matter Collected 307 | 135 39 133 Remotely . | . . . Salvage Created 182 | . 39 143 Parts 7 | . 3 4 Haulers Intercepted . | . . . Recyclers Shooed 1 | . 1 . Parts Field Recycled . | . . . Retrieved Matter . | . . . Parts Self-Destructed . | . . . Prevented . | . . . Kills | -11 -10 -10 ------- Run | Yrd Mat Min Combat Hostiles Destroyed 8 | . 1 7 Melee 6 | . . 6 Guns 1 | . 1 . Classes Destroyed 2 | . 1 1 Swarmer 5 | . . 5 Grunt 3 | . 1 2 Best Kill Streak 2 | . 1 2 Combat Bots Only 2 | . 1 2 Max Kills in Single Turn 1 | . 1 1 Gunslinging . | . . . Exploded . | . . . Melee 1 | . . 1 Uniques/NPCs Destroyed . | . . . Combat | -11 -10 -10 -------- Run | Yrd Mat Min Hostile Shots Fired 120 | . 39 81 Missed 34 | . 16 18 Damage Taken 747 | . 195 552 Core 269 | . 24 245 Absorbed by Shields . | . . . Core Remaining (%) 100 | 100 . . Volleys Fired 9 | . 9 . Largest 1 | . 1 . Hottest 40 | . 40 . Shots Fired 9 | . 9 . Gun 9 | . 9 . Cannon . | . . . Launcher . | . . . Special . | . . . Kinetic . | . . . Thermal . | . . . Explosive . | . . . Electromagnetic 9 | . 9 . Robot Hit Streak 2 | . 2 . Robot Miss Streak 1 | . 1 . Penetration Max . | . . . Secondary Targets . | . . . Shots Hit Robots 27 | . 4 23 Core Hits 5 | . 2 3 Critical Kills . | . . . Critical Parts Destroyed 6 | . . 6 Critical Strikes 6 | . . 6 Smash 6 | . . 6 Melee Attacks 32 | . . 32 Impact 32 | . . 32 Slashing . | . . . Piercing . | . . . Sneak Attacks . | . . . Combat Hostiles . | . . . Follow-up Attacks . | . . . Damage Inflicted 689 | . 55 634 Guns 54 | . 54 . Cannons . | . . . Explosions . | . . . Melee 634 | . . 634 Ramming 1 | . 1 . Kinetic . | . . . Thermal . | . . . Explosive . | . . . Electromagnetic 54 | . 54 . Impact 634 | . . 634 Slashing . | . . . Piercing . | . . . Highest Corruption 7 | . 7 7 Average Corruption 6 | . 6 7 Corruption Purged . | . . . Corruption Blocked . | . . . Effects 13 | . 6 7 Message Errors 4 | . 2 2 Matter Fused 4 | . 2 2 Heat Flow Errors 3 | . . 3 Parts Rejected 1 | . 1 . Data Loss (minor) 1 | . 1 . Overload Shots . | . . . Overflow Damage 214 | . . 214 Projectiles . | . . . Explosions . | . . . Melee 214 | . . 214 Knockbacks 1 | . . 1 Impact 1 | . . 1 Kinetic . | . . . Secondary . | . . . Self-Inflicted Damage . | . . . Shots . | . . . Rammed . | . . . Targets Rammed 1 | . 1 . Kicked 1 | . 1 . Crushed . | . . . Highest Temperature 252 | . 30 252 Average Temperature 72 | . 19 100 Received Heat Transfer 105 | . 36 69 Effects 2 | . . 2 Interference 2 | . . 2 Siege Activations . | . . . Robots Corrupted . | . . . Combat Hostiles . | . . . Parts Fried 1 | . . 1 Impact Corruptions 11 | . . 11 Robots Melted . | . . . Combat Hostiles . | . . . Parts Melted . | . . . Heat Transferred . | . . . Parts Sabotaged . | . . . Parts Stolen . | . . . Parts Stripped . | . . . Power Chain Reactions . | . . . Alert | -11 -10 -10 ------- Run | Yrd Mat Min Peak Influence 140 | . 41 140 Initial 15 | . . 15 Average 41 | . 9 91 Maximum Alert Level . | . . . Low Security (%) 100 | 100 100 100 Level 1 . | . . . Level 2 . | . . . Level 3 . | . . . Level 4 . | . . . Level 5 . | . . . High Security . | . . . Max Security . | . . . Squads Dispatched 3 | . 3 . Investigation 1 | . 1 . Extermination . | . . . Reinforcement 2 | . 2 . Assault . | . . . Garrison . | . . . Intercept . | . . . Searches Triggered . | . . . Construction Impeded . | . . . Haulers Reinforced . | . . . Active Scanning Responses . | . . . Cargo Convoy Interrupts . | . . . Stealth | -11 -10 -10 --------- Run | Yrd Mat Min Distress Signals 1 | . 1 . Communications Jammed . | . . . Distress Signals . | . . . Times Spotted 22 | . 13 9 Peak Tracking Total 8 | . 8 3 Tactical Retreats 3 | . 3 . Traps | -11 -10 -10 ------- Run | Yrd Mat Min Traps Triggered 6 | . 6 . Indirectly . | . . . Trap Hack Attempts . | . . . Triggered . | . . . Disarmed . | . . . Reprogrammed . | . . . Reused . | . . . Traps Extracted . | . . . Installed . | . . . Triggered . | . . . Machines | -11 -10 -10 ---------- Run | Yrd Mat Min Machines Disabled . | . . . Max in Single Turn . | . . . Machines Repaired . | . . . Machines Dismantled . | . . . Machines Sabotaged . | . . . Overloaded Fab Kills . | . . . Hacking | -11 -10 -10 --------- Run | Yrd Mat Min Machines Accessed 1 | . 1 . Terminals 1 | . 1 . Fabricators . | . . . Repair Stations . | . . . Recycling Units . | . . . Scanalyzers . | . . . Garrison Access . | . . . Total Hacks 4 | . 4 . Successful 2 | . 2 . Failed 2 | . 2 . Catastrophic . | . . . Database Lockouts . | . . . Manual . | . . . Terminals 4 | . 4 . Fabricators . | . . . Repair Stations . | . . . Recycling Units . | . . . Scanalyzers . | . . . Garrison Access . | . . . Terminal Hacks 2 | . 2 . Locate Traps 1 | . 1 . Registered Components 1 | . 1 . Fabricator Hacks . | . . . Repair Station Hacks . | . . . Recycling Unit Hacks . | . . . Scanalyzer . | . . . Garrison Access Hacks . | . . . Unauthorized Hacks . | . . . Terminals . | . . . Fabricators . | . . . Repair Stations . | . . . Recycling Units . | . . . Scanalyzers . | . . . Garrison Access . | . . . Data Cores Recovered . | . . . Used . | . . . Hacking Detections 1 | . 1 . Full Trace Events . | . . . Feedback Events . | . . . Feedback Blocked . | . . . Robot Schematics Acquired . | . . . Robots Built . | . . . Authchips . | . . . Time . | . . . Total Robot Build Rating . | . . . Part Schematics Acquired . | . . . Parts Built . | . . . Authchips . | . . . Time . | . . . Total Part Build Rating . | . . . Parts Repaired . | . . . Time . | . . . Parts Recycled . | . . . Recycled Matter . | . . . Retrieved Matter . | . . . Retrieved Components . | . . . Parts Scanalyzed . | . . . Part Schematics Acquired . | . . . Parts Damaged . | . . . Bothacking | -11 -10 -10 ------------ Run | Yrd Mat Min Used RIF Installer . | . . . Robots Hacked . | . . . Non-combat . | . . . Combat . | . . . Robot Hacks Applied . | . . . Relay Couplers Released . | . . . Fabnet Peak Effective % . | . . . Robots Rewired . | . . . Allies Hacked . | . . . Hacks Repelled . | . . . Allies | -11 -10 -10 -------- Run | Yrd Mat Min Total Allies . | . . . Largest Group . | . . . Highest-Rated Group . | . . . Highest-Rated Ally . | . . . Total Orders . | . . . Ally Attacks . | . . . Total Damage . | . . . Kills . | . . . Allies Corrupted . | . . . Allies Melted . | . . . Intel | -11 -10 -10 ------- Run | Yrd Mat Min Robot Analysis Total . | . . . Derelict Logs Recovered . | . . . Drone Launches . | . . . Drone Recoveries . | . . . Exploration | -11 -10 -10 ------------- Run | Yrd Mat Min Turns Passed 626 | 40 332 254 Spaces Moved 392 | 33 212 147 Core 116 | 10 . 106 Treads . | . . . Legs 262 | 23 212 27 Wheels 14 | . . 14 Hover . | . . . Flight . | . . . Fastest Speed 50 | 50 120 50 Average Speed 111 | 98 120 102 Slowest Speed 150 | 120 120 150 Overloaded Moves . | . . . Propulsion Burnouts . | . . . Robots Hopped . | . . . Cave-ins Triggered . | . . . Exploration Rate (%) 27 | 5 43 34 Regions Visited 2 Branch Regions 1 Pre-discovered Areas . | . . . Known Exits Taken 1 | . 1 . Unknown Exits Taken 1 | 1 . . Scrap Searched . | . . . Spaces Dug . | . . . Terrain Destroyed . | . . . Melee . | . . . Projectile . | . . . AOE . | . . . Terrain Rammed . | . . . Walls Destroyed . | . . . Machines Disabled . | . . . Actions | -11 -10 -10 --------- Run | Yrd Mat Min Total 517 | 40 281 196 Wait 53 | . 49 4 Move 390 | 32 211 147 Hop . | . . . Pick Up 17 | 4 7 6 Fast Attach . | . . . Attach 12 | 4 3 5 Detach 1 | . . 1 Swap . | . . . Drop 2 | . 1 1 Fire 9 | . 9 . Melee 32 | . . 32 Ram . | . . . Kick 1 | . 1 . Crush . | . . . Escape Stasis . | . . . Rewire . | . . . Trap . | . . . Miscellaneous . | . . . Route ------- -11/Scrapyard -10/Materials -10/Mines History --------- Turn | Location | Event 17 | -11/Scrapyard | Discovered new exit (range 15) 41 | -11/Scrapyard | Entered Materials 314 | -10/Materials | Build established: Mutant 325 | -10/Materials | Discovered new exit (range 15) 343 | -10/Materials | Identified exit to Mines 373 | -10/Materials | Entered Mines 419 | -10/Mines | Assembled infested the area 440 | -10/Mines | Core integrity fell below 50% 458 | -10/Mines | Found a damaged Exp. Sensor Array with a note attached 463 | -10/Mines | Found Prototype Device 464 | -10/Mines | Identified Exp. Sensor Array 559 | -10/Mines | Core integrity fell below 20% 627 | -10/Mines | Destroyed by as-89781 with Assembled Heavy Rifle Last Messages --------------- 00549_ Welding Torch destroyed. 00554_ Lgt. Ion Engine destroyed. 00559_ Flight Unit fried. 00559_ S-10 Pest destroyed. 00578_ S-10 Pest suffers critical hit (Smash). 00578_ Destroyed Lgt. Ion Engine. 00578_ S-10 Pest system corrupted by crushing effect. 00583_ C7:X&KMJ6LKM8/1UWD5SY 00584_ Destroyed Flight Unit. 00584_ Destroyed Lgt. Assault Rifle. 00584_ S-10 Pest system corrupted by crushing effect. 00584_ S-10 Pest destroyed. 00585_ Acquired 11 matter. 00588_ Acquired Lgt. Assault Rifle. 00604_ System corrupted: Heat flow error (+154). 00608_ Dropped Corrupted Aluminum Leg. 00608_ Acquired Com. Wheel. 00621_ Exp. Sensor Array destroyed. Map ----- +----------------------------------------------------+ | ??????????????????????????????????????????? | | ??????????????????????????????????????????? | | ??????????????????????????????????????????? | | ??????????????????????????????????????????? | | ??????????????????????????????????????????? | | ??????????????????????????????????????????? | | ?????????????????????????????####?????????? | | ????????????????????????????## ##????????? | | ????????????????????????##### #????????? | | ??????????##???????????## #????????? | | ?????????## """???????# #????????? | | ?????????? """???????# #????????? | | ??????????? ????????# #????????? | | ??????????? ?????????# ##???????? | | ???????????? ?????????# ######### | | ????????????? ????????## # | | ?????????????# ###?????# # | | ?????????????? #????## ### ####### | | ??????????????? #???## ##?####?????# # | | ???????????????# #?### ##???????????# # | | ???????????????# ### ! ##????????????# | | ???????????????# ## !%##????????????## | | ???????????????# ##???????????## | | ???????????????# = #???????????# | | ???????????????# ### ############ | | ??????????????## @##?## ## | | ??????????????# a##???########### ### # | | ?????????????# #??????????????# ### #### | | ?????????????# #?????????????# % #??? | | ???????????? #????????????##%## #??? | | ??????????? % ??????####### ## #### | | ??????????#### !% ?????# # | | ?????????????## = #???# # | | ??????????????## #???# # | | ???????????????# #???# # | | ???????????????## #???# """ """ """ # | | ?????????????????# ##???# """ """ """ # | | ??????????????????######????# """ """ """ # | | ????????????????????????????# # | | ?????????????????????????????############## | | ??????????????????????????????????????????? | | ??????????????????????????????????????????? | | | | | | | | | | | | | | | | | +----------------------------------------------------+ Best States ------------- Heat Dissipation 25 Energy Generation 10 Energy Capacity 250 Matter Stores 300 Matter Capacity 300 Sight Range 16 Robot Scan Range 20 Terrain Scan Density 10 ECM Strength 1 Evasion (%) 55 Item Schematics ----------------- None Robot Schematics ------------------ None Fabricated ------------ Nothing Alien Tech Used ----------------- None Achievements -------------- None Challenges ------------ None Game ------ Seed PlatingComponentChronowheel Manual? 0 Play Time 00:14:31 Cumulative 14.1 hours Start 2024.04.10 @ 17:15:44 End 2024.04.10 @ 17:26:16 Sessions 1 Manual Loads 0 Difficulty Rogue Special Mode None Game No. 31 Rogue 31 Adventurer 0 Explorer 0 Win Type - Total 0 Types 0/0/0/0/0/0/0/0/0 Lore% 17 Gallery% 19 Achievement% 17 Wizard Run 0 Options --------- Layout 1 ASCII 0 Keyboard 1 Movement Numpad Keybinds 0 Fullscreen 1 Font 24/Smallcaps Map View 50x35 Zoom Use 0% Tactical HUD 1 Map Filters NONE Filters NONE Steam 1 RUN: 432bd687-5451-445f-9b2b-6dfb7f3a965d